bitfinex/quotes_BTCUSD_20230403
["timestamp","ask_amount","ask_price","bid_price","bid_amount"]
[1680533464753,0.17154,28010.0,28002.0,0.14189681]
[1680533464980,0.17154,28010.0,28002.0,0.15975181]
[1680533465180,0.1958165,28010.0,28002.0,0.15975181]
[1680533465697,0.04141032,28009.0,28004.0,0.2863]
[1680533465935,0.00649293,28009.0,28005.0,0.32098081]
[1680533466186,0.027,28010.0,28006.0,0.402128]
[1680533466461,0.00018,28015.0,28007.0,0.106724]
[1680533466691,0.021,28010.0,28008.0,0.14189681]
[1680533466933,0.00018,28016.0,28006.0,0.35014781]
[1680533467191,0.17136,28017.0,28007.0,0.14189681]
[1680533467192,0.002,28009.0,28007.0,0.14189681]
[1680533467436,0.05145904,28009.0,28004.0,0.04927953]
[1680533467665,0.08073554,28009.0,28004.0,0.06698572]
[1680533467888,0.08073554,28009.0,28004.0,0.04913172]
[1680533468121,0.08073554,28009.0,28003.0,0.017855]
[1680533468353,0.08073554,28009.0,28002.0,0.017855]
[1680533468582,0.0292765,28008.0,28002.0,0.15975181]
[1680533468801,0.0292765,28008.0,28002.0,0.017855]
[1680533469081,0.0292765,28008.0,28002.0,0.05683321]
[1680533469308,0.0292765,28008.0,28002.0,0.017855]
[1680533469538,0.0292765,28008.0,28004.0,0.2863]
[1680533469767,0.04963904,28009.0,28005.0,0.05356]
[1680533469999,0.04963904,28009.0,28005.0,0.08756078]
[1680533470232,0.00018,28011.0,28006.0,0.35]
[1680533470458,0.17136,28016.0,28007.0,0.017852]
[1680533470459,0.04944168,28008.0,28007.0,0.017852]
[1680533470678,0.00118,28015.0,28008.0,0.35]
[1680533470904,0.18008378,28017.0,28009.0,0.14189681]
[1680533470905,0.00018,28016.0,28009.0,0.14189681]
[1680533471139,0.001,28011.0,28009.0,0.14189681]
[1680533471368,0.001,28011.0,28008.0,0.35]
[1680533471607,0.06616073,28014.0,28009.0,0.04999704]
[1680533471836,0.06616073,28014.0,28009.0,0.14189681]
[1680533472070,0.06616073,28014.0,28010.0,0.14189681]
[1680533472308,0.014,28011.0,28010.0,0.11262031]
[1680533472548,0.06616073,28014.0,28010.0,0.052029]
[1680533472781,0.09316073,28014.0,28010.0,0.45094931]
[1680533473009,0.09316073,28014.0,28011.0,0.052605]
[1680533473468,0.09316073,28014.0,28011.0,0.070454]
[1680533473707,0.06616073,28014.0,28010.0,0.30415]
[1680533473951,0.09782986,28014.0,28010.0,0.2863]
[1680533474228,0.06616073,28014.0,28009.0,0.00014781]
[1680533474461,0.17136,28013.0,28008.0,0.04903976]
[1680533474692,0.44207681,28013.0,28008.0,0.04903976]
[1680533474927,0.44207681,28013.0,28005.0,0.017853]
[1680533475392,0.02859,28007.0,28005.0,0.35]
[1680533475626,0.14189681,28006.0,28003.0,0.01800181]
[1680533475849,0.14189681,28006.0,28000.0,0.63644781]
[1680533476080,0.14189681,28006.0,28001.0,0.017856]
[1680533476551,0.02859,28007.0,28002.0,0.11262031]
[1680533476823,0.02859,28007.0,28004.0,0.659]
[1680533477060,0.04776382,28012.0,28006.0,0.7227]
[1680533477306,0.00890378,28017.0,28007.0,1.30165231]
[1680533477537,0.00872378,28017.0,28008.0,0.054191]
[1680533477761,0.00872378,28017.0,28010.0,0.05355]
[1680533477993,0.00872378,28017.0,28011.0,0.13637764]
[1680533478224,0.003,28012.0,28011.0,0.20792345]
[1680533478459,0.03599973,28016.0,28011.0,0.26308645]
[1680533478690,0.003,28017.0,28012.0,0.99216486]
[1680533478923,0.02299,28018.0,28013.0,0.108387]
[1680533479180,0.35471056,28017.0,28014.0,0.038581]
[1680533479451,0.35471056,28017.0,28005.0,0.35471056]
[1680533479452,0.35489056,28017.0,28015.0,0.053541]
[1680533479901,0.35671056,28017.0,28015.0,0.053541]
[1680533480352,0.36471056,28017.0,28015.0,0.053541]
[1680533480593,0.02299,28018.0,28017.0,0.35]
[1680533480831,0.02299,28018.0,28017.0,0.441646]
[1680533481749,0.02499,28018.0,28017.0,0.441826]
[1680533482238,0.00822327,28019.0,28017.0,0.5143286]
[1680533482476,0.22874393,28024.0,28019.0,0.35]
[1680533482714,0.00012,28023.0,28020.0,0.089792]
[1680533482954,0.00012,28023.0,28021.0,0.32081]
[1680533483209,0.00012,28023.0,28022.0,0.089703]
[1680533483452,0.00012,28023.0,28021.0,0.2844]
[1680533483453,0.35483056,28023.0,28021.0,0.017843]
[1680533483678,0.35483056,28023.0,28020.0,0.00018]
[1680533483679,0.35471056,28022.0,28020.0,6e-05]
[1680533483922,0.35471056,28022.0,28020.0,0.017844]
[1680533484387,0.35483056,28022.0,28020.0,0.017844]
[1680533484622,0.30276299,28022.0,28021.0,0.008]
[1680533484854,0.3,28022.0,28021.0,0.017843]
[1680533485792,0.002,28022.0,28021.0,0.017843]
[1680533485991,0.02299,28024.0,28022.0,0.7227]
[1680533486270,0.001,28022.0,28021.0,0.00618]
[1680533486493,0.30568976,28022.0,28018.0,0.04921663]
[1680533486713,0.3058808,28021.0,28018.0,0.04903663]
[1680533486937,0.44777761,28021.0,28019.0,0.035686]
[1680533487168,0.3058808,28021.0,28019.0,0.035686]
[1680533487393,0.3058808,28021.0,28019.0,0.017844]
[1680533487606,0.3058808,28021.0,28018.0,0.04903663]
[1680533488143,0.33848688,28021.0,28018.0,0.05903663]
[1680533488750,0.33848688,28021.0,28018.0,0.01]
[1680533488751,0.14189681,28020.0,28018.0,0.01]
[1680533489025,0.32819618,28019.0,28018.0,0.01]
[1680533489307,0.32819618,28019.0,28014.0,0.017848]
[1680533489585,0.30600818,28019.0,28018.0,0.006]
[1680533489895,0.3,28018.0,28011.0,0.017849]
[1680533490159,0.32935847,28017.0,28011.0,0.04994469]
[1680533490438,0.54091534,28016.0,28008.0,0.018031]
[1680533490703,0.30690004,28015.0,28014.0,0.001]
[1680533490946,0.32988904,28015.0,28008.0,0.04993339]
[1680533491188,0.30696377,28013.0,28008.0,0.04993339]
[1680533491466,0.57018049,28012.0,28008.0,0.04993339]
[1680533491720,0.57018049,28012.0,28001.0,0.035712]
[1680533491721,0.30709122,28010.0,28005.0,0.017853]
[1680533491937,0.44189681,28009.0,28005.0,0.017853]
[1680533492174,0.30753737,28008.0,28005.0,0.017853]
[1680533492408,0.30753737,28008.0,28004.0,0.017854]
[1680533492629,0.06077174,28007.0,28004.0,0.017854]
[1680533492846,0.30772861,28006.0,28005.0,0.006]
[1680533493078,0.30772861,28006.0,28003.0,0.08500759]
[1680533493314,0.00118,28008.0,28005.0,0.006]
[1680533493570,0.47345236,28020.0,28006.0,0.535041]
[1680533493571,0.00018,28010.0,28006.0,0.535041]
[1680533493795,0.35,28020.0,28006.0,0.535041]
[1680533493796,0.3,28014.0,28007.0,0.036447]
[1680533494034,0.30709122,28013.0,28009.0,0.017851]
[1680533494260,0.30727122,28013.0,28009.0,0.017851]
[1680533494714,0.30709122,28013.0,28009.0,0.017851]
[1680533494979,0.30702749,28012.0,28007.0,0.40005906]
[1680533495209,0.001,28008.0,28007.0,0.05005906]
[1680533495437,0.001,28008.0,28007.0,0.04987906]
[1680533495438,0.30747362,28008.0,28007.0,0.04987906]
[1680533495669,0.30747362,28008.0,28004.0,0.00018]
[1680533495670,0.33822098,28008.0,28004.0,0.00018]
[1680533495898,0.33822098,28008.0,28002.0,0.00018]
[1680533495899,0.44956168,28007.0,28002.0,0.00018]
[1680533496175,0.14189681,28006.0,28002.0,0.00018]
[1680533496418,0.33077287,28005.0,28001.0,0.04934091]
[1680533496652,0.24055078,28004.0,28001.0,0.04934091]
[1680533496888,0.24055078,28004.0,27998.0,0.017858]
[1680533496889,0.33072215,28003.0,27998.0,0.017858]
[1680533497117,0.33072215,28003.0,28002.0,0.001]
[1680533497118,0.60811115,28003.0,28002.0,0.001]
[1680533497346,0.63124715,28003.0,28002.0,0.001]
[1680533497575,0.63109207,28003.0,28002.0,0.001]
[1680533497798,0.70192797,28003.0,28002.0,0.001]
[1680533498021,0.70192797,28003.0,27996.0,0.04908738]
[1680533498246,0.14189681,28002.0,27995.0,0.01786]
[1680533498483,0.30846626,28001.0,27995.0,0.01786]
[1680533498759,0.44189681,28000.0,27995.0,0.01786]
[1680533498984,0.82546316,28000.0,27993.0,0.00018]
[1680533499213,0.02294,27999.0,27992.0,0.04994316]
[1680533499441,0.4507458,27998.0,27991.0,0.042822]
[1680533499669,0.3,27997.0,27991.0,0.02496]
[1680533499914,0.4509372,27996.0,27991.0,0.00018]
[1680533500153,0.4509372,27996.0,27990.0,0.0879799]
[1680533500375,0.3,27995.0,27990.0,0.0701179]
[1680533500600,0.45112863,27994.0,27990.0,0.0701179]
[1680533501540,0.021758,27993.0,27990.0,0.0701179]
[1680533501754,0.30935943,27992.0,27990.0,0.0701179]
[1680533502209,0.30935943,27992.0,27990.0,0.02108]
[1680533503779,0.29988962,27991.0,27990.0,0.038763]
[1680533504022,0.00018,27991.0,27990.0,0.038763]
[1680533504245,0.006,27992.0,27991.0,0.35]
[1680533504469,0.006,27992.0,27991.0,0.438973]
[1680533504694,0.00018,27996.0,27991.0,0.439153]
[1680533504913,0.30910421,27995.0,27992.0,0.035949]
[1680533505130,0.30910421,27995.0,27993.0,0.053584]
[1680533505353,0.30910421,27995.0,27993.0,0.017861]
[1680533505789,0.30910421,27995.0,27994.0,0.036017]
[1680533506008,0.30910421,27995.0,27993.0,0.017861]
[1680533506468,0.45100102,27995.0,27993.0,0.017861]
[1680533506691,0.45100102,27995.0,27992.0,0.035904]
[1680533506692,0.30910421,27995.0,27992.0,0.00018]
[1680533506913,0.30910421,27995.0,27991.0,0.00018]
[1680533507137,0.30910421,27995.0,27991.0,0.04429926]
[1680533507138,0.32210421,27995.0,27991.0,0.04429926]
[1680533507358,0.30910421,27995.0,27993.0,0.017861]
[1680533507585,0.32910421,27995.0,27993.0,0.017861]
[1680533507834,0.30910421,27995.0,27993.0,0.017861]
[1680533508068,0.31510421,27995.0,27993.0,0.017861]
[1680533508293,0.45100102,27995.0,27992.0,0.018041]
[1680533508514,0.50252944,27995.0,27992.0,0.00018]
[1680533508738,0.50252944,27995.0,27991.0,0.13638]
[1680533508739,0.02276,27994.0,27991.0,0.13638]
[1680533508963,0.30923182,27993.0,27991.0,0.00018]
[1680533509186,0.30923182,27993.0,27990.0,0.02108]
[1680533509849,0.020761,27992.0,27990.0,0.02108]
[1680533510070,0.020761,27992.0,27990.0,0.0209]
[1680533510291,0.320761,27992.0,27990.0,0.0209]
[1680533510527,0.33078026,27991.0,27990.0,0.0209]
[1680533511388,0.35778026,27991.0,27990.0,0.0209]
[1680533511875,0.33078026,27991.0,27990.0,0.0209]
[1680533513362,0.35778026,27991.0,27990.0,0.0209]
[1680533513582,0.33078026,27991.0,27990.0,0.0209]
[1680533513801,0.35778026,27991.0,27990.0,0.0209]
[1680533514029,0.33078026,27991.0,27990.0,0.02108]
[1680533514313,0.35778026,27991.0,27990.0,0.02108]
[1680533514529,0.33078026,27991.0,27990.0,0.02108]
[1680533514742,0.35778026,27991.0,27990.0,0.02108]
[1680533514963,0.048357,27991.0,27990.0,0.02108]
[1680533515179,0.048357,27991.0,27990.0,0.0209]
[1680533515398,0.36269777,27991.0,27990.0,0.0209]
[1680533515636,0.33073053,27991.0,27990.0,0.0209]
[1680533515846,0.35773053,27991.0,27990.0,0.0209]
[1680533516070,0.33073053,27991.0,27990.0,0.0209]
[1680533516293,0.35773053,27991.0,27990.0,0.0209]
[1680533516726,0.33073053,27991.0,27990.0,0.0209]
[1680533516958,0.00018,27992.0,27990.0,0.46474521]
[1680533517184,0.00018,27994.0,27991.0,0.35]
[1680533517402,0.00018,27996.0,27992.0,0.017862]
[1680533517617,0.30923182,27994.0,27992.0,0.017862]
[1680533517834,0.30941182,27994.0,27992.0,0.017862]
[1680533518070,0.30916801,27993.0,27991.0,0.368042]
[1680533518305,0.4507458,27992.0,27990.0,0.07092375]
[1680533518529,0.60932224,27991.0,27988.0,93.65248027]
[1680533518762,0.44581471,27989.0,27988.0,93.65266027]
[1680533518983,0.61021252,27989.0,27988.0,93.65266027]
[1680533519197,0.78193252,27989.0,27988.0,93.65248027]
[1680533519477,0.78193252,27989.0,27988.0,93.63253951]
[1680533519478,1.91875897,27989.0,27988.0,93.63253951]
[1680533519696,2.09029897,27989.0,27988.0,93.63453951]
[1680533519918,1.91875897,27989.0,27988.0,93.63253951]
[1680533520156,1.92775897,27989.0,27988.0,93.63453951]
[1680533520367,1.91875897,27989.0,27988.0,93.63253951]
[1680533520621,2.09029897,27989.0,27988.0,93.63253951]
[1680533521045,2.09879897,27989.0,27988.0,93.63253951]
[1680533521467,2.09929897,27989.0,27988.0,93.63453951]
[1680533521690,2.09029897,27989.0,27988.0,93.63253951]
[1680533521933,2.24005897,27989.0,27988.0,93.63453951]
[1680533522590,2.23105897,27989.0,27988.0,93.63253951]
[1680533522806,2.24005897,27989.0,27988.0,93.63453951]
[1680533523026,2.09029897,27989.0,27988.0,93.63253951]
[1680533523253,2.09929897,27989.0,27988.0,93.63453951]
[1680533524364,2.16238426,27989.0,27988.0,93.32479715]
[1680533524605,2.17088426,27989.0,27988.0,93.32479715]
[1680533525279,1.93438426,27989.0,27988.0,93.32479715]
[1680533525468,1.92538426,27989.0,27988.0,93.31375254]
[1680533525675,1.93438426,27989.0,27988.0,93.29605254]
[1680533525936,2.30708426,27989.0,27988.0,93.29605254]
[1680533526166,1.79818426,27989.0,27988.0,93.29605254]
[1680533526858,1.78968426,27989.0,27988.0,93.29605254]
[1680533527301,1.78940549,27989.0,27988.0,93.29623254]
[1680533528636,1.78958549,27989.0,27988.0,93.28528372]
[1680533530059,1.61804549,27989.0,27988.0,93.2636464]
[1680533530286,1.79808549,27989.0,27988.0,93.2636464]
[1680533531044,1.78958549,27989.0,27988.0,93.25828038]
[1680533531285,1.78958549,27989.0,27988.0,93.25720055]
[1680533532218,1.48952549,27989.0,27988.0,93.25726055]
[1680533532454,1.31786549,27989.0,27988.0,93.25738055]
[1680533533138,0.02240223,27989.0,27988.0,93.25538055]
[1680533533373,0.021467,27993.0,27988.0,93.25538055]
[1680533533723,1.28629365,27992.0,27988.0,93.25538055]
[1680533533828,1.28629365,27992.0,27988.0,93.27524455]
[1680533534066,0.009,27989.0,27988.0,93.25738055]
[1680533534332,0.04911262,27994.0,27989.0,0.35]
[1680533534333,0.009,27993.0,27989.0,0.35]
[1680533534602,1.30870298,27992.0,27990.0,0.25]
[1680533534841,1.30763098,27991.0,27990.0,0.25018]
[1680533535066,1.30763098,27991.0,27990.0,0.268043]
[1680533535290,1.30763098,27991.0,27990.0,0.25018]
[1680533535759,1.60763098,27991.0,27990.0,0.00018]
[1680533536255,0.32138,27991.0,27990.0,0.018043]
[1680533536487,0.32138,27991.0,27990.0,0.00018]
[1680533536709,0.32938,27991.0,27990.0,0.00218]
[1680533536934,0.02138,27991.0,27990.0,0.018043]
[1680533537166,0.008,27991.0,27990.0,0.019043]
[1680533537410,0.3,27998.0,27990.0,0.018043]
[1680533537693,0.008,27991.0,27990.0,0.370043]
[1680533537977,0.3,27996.0,27990.0,0.35018]
[1680533538250,1.30841158,27995.0,27990.0,0.35018]
[1680533538524,1.60787158,27994.0,27990.0,0.35018]
[1680533538795,0.14189681,27995.0,27990.0,0.35018]
[1680533538796,1.30835458,27993.0,27990.0,0.35018]
[1680533539063,0.14189681,27995.0,27990.0,0.35118]
[1680533539064,0.008,27991.0,27990.0,0.35118]
[1680533539307,0.02122866,27991.0,27990.0,0.00018]
[1680533539552,1.30735172,27991.0,27990.0,0.002]
[1680533539791,1.30735172,27991.0,27988.0,93.27306455]
[1680533539792,1.30735172,27991.0,27988.0,93.25538055]
[1680533540028,0.30018,27992.0,27990.0,0.002]
[1680533540283,0.022362,27991.0,27990.0,0.154062]
[1680533540524,0.008,27991.0,27990.0,0.156062]
[1680533540752,0.0495158,27996.0,27990.0,0.154062]
[1680533540981,1.30726693,27995.0,27990.0,0.154062]
[1680533541211,1.60827593,27994.0,27990.0,0.154062]
[1680533541457,1.30678893,27993.0,27990.0,0.154062]
[1680533541683,0.3,27992.0,27991.0,0.35]
[1680533541905,0.3,27992.0,27991.0,0.367862]
[1680533541906,0.30018,27992.0,27991.0,0.367862]
[1680533542129,0.30718,27992.0,27991.0,0.367862]
[1680533542363,0.30018,27992.0,27991.0,0.35]
[1680533542604,0.330898,27992.0,27990.0,0.00018]
[1680533542842,0.330898,27992.0,27988.0,93.25520055]
[1680533542843,0.322298,27991.0,27988.0,93.25538055]
[1680533543071,0.00018,27992.0,27988.0,93.27324455]
[1680533543295,0.3,27990.0,27988.0,93.27306455]
[1680533543511,0.022319,27989.0,27988.0,93.27324455]
[1680533543747,0.00718,27991.0,27988.0,93.27424455]
[1680533543972,0.007,27991.0,27988.0,93.25620055]
[1680533544193,0.007,27991.0,27989.0,0.35]
[1680533544409,0.007,27991.0,27989.0,0.367863]
[1680533544643,0.14889681,27991.0,27988.0,93.25620055]
[1680533544864,1.32366256,27990.0,27988.0,93.25620055]
[1680533545128,0.08230157,27998.0,27989.0,0.1362]
[1680533545332,1.92919736,27999.0,27991.0,0.053586]
[1680533545526,0.04921936,27994.0,27993.0,0.3727]
[1680533545760,0.00018,27998.0,27993.0,0.75100266]
[1680533546013,0.02299,28006.0,27993.0,0.75100266]
[1680533546014,0.04966623,27999.0,27997.0,0.1362]
[1680533546243,0.04966623,27999.0,27998.0,0.166723]
[1680533546506,0.00018,28004.0,27999.0,0.35]
[1680533546762,0.00018,28005.0,28000.0,0.233776]
[1680533547003,0.00018,28005.0,28001.0,0.04324]
[1680533547227,0.02299,28006.0,28003.0,0.1362]
[1680533547455,0.02299,28006.0,28004.0,0.017854]
[1680533548134,0.02299,28006.0,28005.0,0.180602]
[1680533548367,0.02299,28006.0,28005.0,0.234162]
[1680533548831,0.02299,28006.0,28004.0,0.003]
[1680533548832,0.0302931,28006.0,28004.0,0.003]
[1680533549328,0.0302931,28006.0,27996.0,0.00018]
[1680533549329,0.016404,28005.0,28001.0,0.154056]
[1680533549559,0.15830081,28005.0,28001.0,0.154056]
[1680533549788,0.0304731,28006.0,28001.0,0.1362]
[1680533550013,0.32299,28006.0,28004.0,0.002]
[1680533550257,0.015875,28005.0,28004.0,0.017854]
[1680533550492,0.015875,28005.0,27998.0,0.00018]
[1680533550724,0.00018,28005.0,28004.0,0.017854]
[1680533550952,0.02299,28006.0,28004.0,0.1082483]
[1680533550953,0.02317,28006.0,28004.0,0.1082483]
[1680533551182,0.02299,28006.0,28005.0,0.042603]
[1680533551419,0.03673549,28008.0,28006.0,0.35]
[1680533551651,0.03673549,28008.0,28007.0,0.166297]
[1680533551892,0.02299,28009.0,28007.0,0.3970093]
[1680533552115,0.02299,28009.0,28008.0,0.040446]
[1680533552338,0.02299,28012.0,28008.0,0.439498]
[1680533552561,0.02299,28012.0,28009.0,0.538284]
[1680533552785,0.02299,28012.0,28010.0,0.0743136]
[1680533553479,0.02299,28012.0,28011.0,0.1362]
[1680533553702,0.02299,28012.0,28011.0,0.233218]
[1680533554426,0.02299,28012.0,28011.0,0.614418]
[1680533554658,0.02299,28012.0,28011.0,0.630418]
[1680533555292,0.02299,28012.0,28011.0,0.980418]
[1680533555544,0.02299,28012.0,28011.0,1.1533994]
[1680533555765,0.02299,28012.0,28011.0,1.1693994]
[1680533555985,0.02299,28012.0,28011.0,1.1691994]
[1680533556651,0.02299,28012.0,28011.0,0.599198]
[1680533559123,0.02299,28012.0,28011.0,0.607698]
[1680533560900,0.02299,28012.0,28011.0,0.980398]
[1680533561163,0.02299,28012.0,28011.0,1.114618]
[1680533561356,0.02299,28012.0,28011.0,1.114438]
[1680533561600,0.02299,28012.0,28011.0,1.1708334]
[1680533562046,0.02299,28012.0,28011.0,1.1938334]
[1680533562507,0.01542439,28017.0,28011.0,1.1938334]
[1680533562733,0.01542439,28017.0,28016.0,0.1354]
[1680533562964,0.00018,28022.0,28016.0,0.110125]
[1680533563189,0.00018,28022.0,28016.0,0.11627327]
[1680533564094,0.00018,28022.0,28016.0,0.11927327]
[1680533564579,0.14207681,28022.0,28016.0,0.11927327]
[1680533565758,0.14207681,28022.0,28016.0,0.10573327]
[1680533565978,0.14207681,28022.0,28016.0,0.07004027]
[1680533566432,0.14207681,28022.0,28016.0,0.06704027]
[1680533568919,0.14189681,28021.0,28016.0,0.06704027]
[1680533569644,0.14189681,28021.0,28016.0,0.04919427]
[1680533569645,0.015311,28020.0,28016.0,0.04919427]
[1680533569888,0.02951868,28020.0,28016.0,0.04919427]
[1680533570119,0.015728,28019.0,28016.0,0.003]
[1680533570341,0.015728,28019.0,28011.0,0.18531585]
[1680533570534,0.14189681,28018.0,28016.0,0.001]
[1680533570806,0.03291125,28019.0,28016.0,0.001]
[1680533570807,0.016081,28017.0,28016.0,0.001]
[1680533571037,0.01736325,28019.0,28011.0,0.20316585]
[1680533571038,0.503333,28018.0,28012.0,0.017849]
[1680533571284,0.014922,28017.0,28016.0,0.002]
[1680533572053,0.014922,28017.0,28013.0,0.017848]
[1680533572804,0.014922,28017.0,28016.0,0.001]
[1680533573025,0.014922,28017.0,28013.0,0.017848]
[1680533573244,0.06690053,28017.0,28013.0,0.020848]
[1680533573496,0.48768,28018.0,28011.0,0.08521485]
[1680533573497,0.015574,28016.0,28012.0,0.017848]
[1680533573882,0.01626,28017.0,28013.0,0.003]
[1680533574103,0.01626,28017.0,28013.0,0.020848]
[1680533574348,0.4875,28018.0,28014.0,0.1358]
[1680533574577,0.48768,28018.0,28015.0,0.166661]
[1680533574789,0.00018,28018.0,28016.0,0.04441]
[1680533574989,0.02299,28023.0,28017.0,0.053538]
[1680533575220,0.02317,28023.0,28017.0,0.053538]
[1680533575717,0.02317,28023.0,28017.0,0.10313946]
[1680533576166,0.02317,28023.0,28017.0,0.11313946]
[1680533576397,0.02317,28023.0,28017.0,0.10313946]
[1680533576617,0.16506681,28023.0,28017.0,0.11313946]
[1680533576848,0.16506681,28023.0,28017.0,0.05960146]
[1680533576849,0.25108281,28023.0,28017.0,0.05960146]
[1680533577063,0.3,28022.0,28017.0,0.07744746]
[1680533577314,0.30018,28022.0,28017.0,0.05960146]
[1680533577528,0.35758728,28022.0,28017.0,0.07744746]
[1680533577751,0.35758728,28022.0,28017.0,0.05960146]
[1680533577983,0.35758728,28022.0,28017.0,0.06744746]
[1680533578204,0.35758728,28022.0,28017.0,0.07744746]
[1680533578639,0.35758728,28022.0,28017.0,0.05960146]
[1680533579102,0.35758728,28022.0,28017.0,0.01]
[1680533579812,0.05758728,28022.0,28017.0,0.01]
[1680533580035,0.49752622,28021.0,28017.0,0.01]
[1680533580268,0.79752622,28020.0,28017.0,0.01]
[1680533580497,0.30018,28020.0,28017.0,0.01]
[1680533580727,0.00018,28020.0,28017.0,0.01]
[1680533580980,0.49676389,28022.0,28015.0,0.04991703]
[1680533581216,0.9549337,28021.0,28017.0,0.003]
[1680533581447,0.51293489,28020.0,28015.0,0.04991703]
[1680533581675,0.51293489,28020.0,28017.0,0.01]
[1680533581676,0.81202689,28019.0,28017.0,0.01]
[1680533581868,0.51211489,28018.0,28014.0,0.017847]
[1680533582129,0.3,28017.0,28015.0,0.003]
[1680533582352,0.3,28017.0,28014.0,0.017847]
[1680533582353,0.30018,28017.0,28014.0,0.017847]
[1680533582583,0.14189681,28016.0,28015.0,0.003]
[1680533582826,0.016091,28016.0,28015.0,0.003]
[1680533583057,0.015911,28016.0,28015.0,0.003]
[1680533583291,0.50946994,28016.0,28015.0,0.003]
[1680533583484,0.80946994,28016.0,28009.0,0.017851]
[1680533583774,0.30018,28017.0,28009.0,0.017851]
[1680533583775,0.95065775,28015.0,28009.0,0.017851]
[1680533584010,0.015276,28014.0,28009.0,0.017851]
[1680533584235,0.15717281,28014.0,28009.0,0.017851]
[1680533584458,0.14189681,28014.0,28009.0,0.017851]
[1680533584685,0.14189681,28014.0,28009.0,0.027851]
[1680533584916,0.14189681,28014.0,28009.0,0.01]
[1680533585151,0.01418968,28013.0,28009.0,0.01]
[1680533585391,0.13568,28017.0,28008.0,0.017851]
[1680533585632,0.69606839,28016.0,28009.0,0.016]
[1680533585853,0.55469358,28015.0,28009.0,0.016]
[1680533586103,0.85431658,28014.0,28009.0,0.016]
[1680533586341,0.015495,28013.0,28009.0,0.016]
[1680533586561,0.3,28014.0,28008.0,0.017851]
[1680533586783,0.48610449,28014.0,28008.0,0.017851]
[1680533587230,0.3,28013.0,28009.0,0.00292546]
[1680533587445,0.3,28013.0,28007.0,0.08526831]
[1680533587446,0.00018,28013.0,28007.0,0.04950431]
[1680533587703,0.14189681,28013.0,28008.0,0.01]
[1680533587936,0.00018,28015.0,28006.0,0.035706]
[1680533588169,0.14189681,28014.0,28008.0,0.027851]
[1680533588388,0.14189681,28014.0,28008.0,0.017851]
[1680533589304,0.14189681,28014.0,28008.0,0.017852]
[1680533589984,0.14189681,28014.0,28008.0,0.027852]
[1680533591408,0.14189681,28014.0,28008.0,0.017852]
[1680533591628,0.14189681,28014.0,28008.0,0.033852]
[1680533592305,0.14189681,28014.0,28008.0,0.016]
[1680533592548,0.14189681,28014.0,28007.0,0.06727141]
[1680533592773,0.14189681,28014.0,28008.0,0.028]
[1680533593043,0.14189681,28014.0,28007.0,0.06727141]
[1680533593266,0.01420768,28013.0,28008.0,0.016]
[1680533593503,0.017092,28012.0,28007.0,0.04941941]
[1680533593742,0.14189681,28012.0,28008.0,0.01]
[1680533593946,0.01420768,28013.0,28007.0,0.04941941]
[1680533594199,0.015514,28012.0,28008.0,0.003]
[1680533595167,0.504714,28012.0,28008.0,0.003]
[1680533595391,0.315488,28011.0,28004.0,0.017854]
[1680533595628,0.14189681,28010.0,28005.0,0.017853]
[1680533596542,0.30018,28011.0,28005.0,0.033853]
[1680533596759,0.44207681,28011.0,28005.0,0.033853]
[1680533596988,0.44207681,28011.0,28005.0,0.017853]
[1680533597215,0.44207681,28011.0,28005.0,0.033853]
[1680533597470,0.14189681,28010.0,28004.0,0.017854]
[1680533597699,0.14189681,28009.0,28003.0,0.15246183]
[1680533597925,0.14189681,28009.0,28003.0,0.13460783]
[1680533598180,0.0844,28005.0,28003.0,0.04990783]
[1680533598421,0.15779781,28004.0,28003.0,0.04990783]
[1680533598650,0.15779781,28004.0,27999.0,0.0209]
[1680533598879,0.15732381,28003.0,27999.0,0.0209]
[1680533599117,0.015398,28002.0,27999.0,0.0209]
[1680533599349,0.24229481,28002.0,27999.0,0.0209]
[1680533599585,0.15762581,28001.0,27999.0,0.0209]
[1680533599833,0.185161,28000.0,27999.0,0.0209]
[1680533600062,0.356581,28000.0,27999.0,0.0209]
[1680533600281,0.485161,28000.0,27999.0,0.0209]
[1680533600524,0.5636951,28000.0,27999.0,0.0209]
[1680533600781,0.7351151,28000.0,27999.0,0.0209]
[1680533601293,0.5636951,28000.0,27999.0,0.0209]
[1680533601530,0.5636951,28000.0,27999.0,0.0229]
[1680533601751,0.5638751,28000.0,27999.0,0.0229]
[1680533602222,0.5300751,28000.0,27999.0,0.0249]
[1680533602459,0.5300751,28000.0,27999.0,0.0209]
[1680533602685,0.5300751,28000.0,27999.0,0.0229]
[1680533602922,0.5300751,28000.0,27999.0,0.0209]
[1680533603386,0.7014951,28000.0,27999.0,0.0229]
[1680533603884,0.5300751,28000.0,27999.0,0.0229]
[1680533604346,0.5300751,28000.0,27999.0,0.0209]
[1680533604830,0.451541,28000.0,27999.0,0.0229]
[1680533605068,0.015341,28000.0,27999.0,0.0209]
[1680533605308,0.3,28000.0,27999.0,0.0229]
[1680533605540,0.316442,28000.0,27999.0,0.0229]
[1680533605776,0.316442,28000.0,27999.0,0.0209]
[1680533605997,0.316442,28000.0,27999.0,0.0229]
[1680533606217,0.30018,28000.0,27999.0,0.0229]
[1680533606446,0.00018,28001.0,27999.0,0.0179]
[1680533606673,0.30018,28004.0,27999.0,0.0179]
[1680533606887,0.01675,28003.0,27999.0,0.0179]
[1680533607113,0.01675,28003.0,27999.0,0.0159]
[1680533607333,0.01675,28003.0,27999.0,0.0179]
[1680533607548,0.01675,28003.0,27999.0,0.0159]
[1680533607782,0.01675,28003.0,27999.0,0.0179]
[1680533608006,0.015704,28004.0,27999.0,0.0159]
[1680533608240,0.24912953,28004.0,27999.0,0.0159]
[1680533608481,0.017036,28003.0,27999.0,0.0179]
[1680533608924,0.1349,28001.0,27999.0,0.0179]
[1680533609184,0.016149,28000.0,27999.0,0.0179]
[1680533610124,0.016149,28000.0,27999.0,0.0159]
[1680533610319,0.01582976,28000.0,27999.0,0.0159]
[1680533610539,0.01582976,28000.0,27999.0,0.0179]